Cogmind - Beta 16 @@@ ROGUE MODE // 2026.01.05 @ 05:59:15 Player: C4PT41N Result: Destroyed by G-47 Trooper with Particle Gun Performance ------------- Evolutions (3) 1500 Regions Visited (6) 1200 Robots Destroyed (101) 505 Value Destroyed (3010) 3010 Prototype IDs (28) 560 Alien Tech Used (0) 0 Bonus (134) 134 TOTAL SCORE: 6909 Bonus ------- Follower Combat Kills 134 Cogmind --------- Core Integrity 0/700 Matter 300/300 Energy 100/100 System Corruption 15% Temperature Cool (9) Movement Core (50) Location -7/Factory Parts ------- > --- POWER (2) -------- (None) > --- PROPULSION (3) --- (None) > --- UTILITY (5) ------ Improved Signal Interpreter > --- WEAPON (3) ------- (None) > --- INVENTORY (5) ---- Improved Deuterium Engine Light Treads Aluminum Leg Wheel Remote Datajack Peak State ------------ > --- POWER ------------ Light Deuterium Engine Improved Deuterium Engine > --- PROPULSION ------- Aluminum Leg Aluminum Leg Aluminum Leg > --- UTILITY ---------- Improved Sensor Array Improved Signal Interpreter Microactuators Improved Medium Armor Plating Hardlight Generator > --- WEAPON ----------- Improved Assault Rifle Heavy Flail Heavy Flail > --- INVENTORY -------- Improved Deuterium Engine Aluminum Leg Improved Shield Generator Improved Medium Laser Datajack [Rating: 37] Favorites ----------- Power Light Nuclear Core Engine Improved Deuterium Engine Power Core Light Nuclear Core Propulsion Aluminum Leg Treads Light Treads Leg Aluminum Leg Wheel Wheel Hover Unit Gravmag System Utility Improved Signal Interpreter Device Improved Sensor Array Storage Medium Storage Unit Processor Improved Signal Interpreter Protection Improved Medium Armor Plating Weapon Heavy Flail Energy Gun Particle Gun Ballistic Gun Improved Assault Rifle Ballistic Cannon Light Cannon Launcher Improved Grenade Launcher Impact Weapon Heavy Flail Slashing Weapon Great Axe Build | -11 -10 -10 -10 -9 -8 -7 ------- Run | Yrd Mat Min Exi Min Mat Fac Slots Evolved 6 | . . . . . 4 2 Power 1 | . . . . . 1 . Propulsion 1 | . . . . . 1 . Utility 3 | . . . . . 2 1 Weapon 1 | . . . . . . 1 Parts Attached 86 | 7 7 8 2 3 38 21 Power 16 | 1 . 2 . 1 8 4 Engine 9 | 1 . 1 . 1 5 1 Core 7 | . . 1 . . 3 3 Reactor . | . . . . . . . Propulsion 30 | 2 3 4 . 1 10 10 Treads 5 | . . . . . 1 4 Leg 16 | . 2 4 . 1 9 . Wheel 6 | 2 1 . . . . 3 Hover 3 | . . . . . . 3 Flight . | . . . . . . . Utility 22 | 2 2 . . 1 11 6 Device 9 | 1 1 . . . 3 4 Storage 3 | 1 . . . . 1 1 Processor 5 | . 1 . . 1 3 . Hackware . | . . . . . . . Protection 5 | . . . . . 4 1 Artifact . | . . . . . . . Weapon 18 | 2 2 2 2 . 9 1 Energy Gun 4 | . . 1 1 . 2 . Energy Cannon . | . . . . . . . Ballistic Gun 4 | 2 . . . . 2 . Ballistic Cannon 2 | . 1 . . . 1 . Launcher 3 | . 1 1 . . 1 . Special Weapon . | . . . . . . . Impact Weapon 4 | . . . 1 . 2 1 Slashing Weapon 1 | . . . . . 1 . Piercing Weapon . | . . . . . . . Special Melee Weapon . | . . . . . . . Unidentified Prototypes 3 | . . . . . 3 . Corrupted Parts 7 | . . . . . 5 2 System Corruption 29 | . . . . . 26 3 Parts Lost 36 | . . 2 . . 10 24 Power 10 | . . 1 . . 3 6 Propulsion 14 | . . . . . 6 8 Utility 8 | . . . . . 1 7 Weapon 4 | . . 1 . . . 3 Highest Loss Streak 8 | . . 1 . . 2 8 To Critical Strikes . | . . . . . . . Average Backups 4 | 2 4 5 3 4 4 4 Power . | . 1 . . . . . Propulsion . | 1 1 . . . . 1 Utility 1 | . 1 4 2 2 . . Weapon 1 | . . . 1 . 1 . Tool/Special . | . . . . . . . Unused Backups 8 | . . . 2 1 1 4 Power 1 | . . . . . . 1 Propulsion . | . . . . . . . Utility 2 | . . . 2 . . . Weapon 3 | . . . . 1 1 1 Tool/Special 2 | . . . . . . 2 Average Slot Usage (%) 92 | . 99 95 99 100 95 79 Engine 8 | . 14 4 . 10 13 6 Core 5 | . . 8 13 3 3 2 Treads 2 | . . . . . . 8 Leg 20 | . 9 28 28 28 23 6 Wheel 1 | . 18 . . . . 3 Device 11 | . 14 14 14 3 12 12 Processor 13 | . 13 14 14 24 12 7 Protection 4 | . . . . . 10 4 Energy Gun 5 | . . 9 13 14 1 . Ballistic Gun 1 | . 4 . . . 1 3 Ballistic Cannon 1 | . 10 9 . . . . Launcher 3 | . 12 5 13 . . . Impact Weapon 11 | . . . . 14 13 18 Peak Build Rating 37 | 7 8 13 17 20 35 37 Average Rating 23 | 5 7 10 13 19 30 29 On Entrance 13 | . 7 8 13 17 20 31 Avg Prop Armor Cover (%) 10 | . . . 17 . 5 11 Naked Turns . | . . . . . . . Heaviest Build 45 | 15 15 15 15 15 45 44 Greatest Support 60 | 26 26 20 20 25 40 60 Greatest Overweight (x) 8 | . . . 4 . 4 8 Average Overweight (x) . | . . . . . . . Largest Inventory Capacity 20 | 8 8 5 5 5 10 20 Average Capacity 5 | 6 5 5 5 5 5 5 Most Carried 7 | 3 5 5 5 5 7 5 Average Carried 4 | 2 4 4 4 4 4 4 Final Capacity 8 | 8 5 5 5 5 5 5 Final Carried 5 | 3 5 5 5 5 5 5 Class Distribution -------------------- 45% | Scavenger-Mutant 41% | Mutant 4% | Scavenger-Assassin 3% | Gladiator 3% | Commander-Mutant Dominant Class ---------------- Mutant | -10/Materials Mutant | -10/Mines Scavenger-Mutant | -10/Exiles Scavenger-Mutant | -9/Mines Mutant | -8/Materials Mutant | -7/Factory Resources | -11 -10 -10 -10 -9 -8 -7 ----------- Run | Yrd Mat Min Exi Min Mat Fac Matter Collected 1989 | 256 117 168 . 236 786 426 Remotely . | . . . . . . . Salvage Created 3533 | 76 203 101 . 541 1449 1163 Parts 133 | 4 28 7 . 7 44 43 Haulers Intercepted 4 | . 2 . . . 2 . Recyclers Shooed . | . . . . . . . Parts Field Recycled . | . . . . . . . Retrieved Matter . | . . . . . . . Parts Self-Destructed . | . . . . . . . Prevented . | . . . . . . . Parts Restored . | . . . . . . . Kills | -11 -10 -10 -10 -9 -8 -7 ------- Run | Yrd Mat Min Exi Min Mat Fac Combat Hostiles Destroyed 61 | . 8 4 . 1 25 23 Melee 31 | . . . . 1 12 18 Guns 2 | . . . . . 2 . Cannons 3 | . 1 2 . . . . AOE 11 | . 7 2 . . 2 . Classes Destroyed 14 | 2 5 . . 2 3 2 Worker 10 | . . . . 5 3 2 Builder 3 | . 1 . . 1 . 1 Tunneler 4 | 1 . . . 3 . . Hauler 4 | . 2 . . . 2 . Recycler 9 | 1 . . . 5 3 . Mechanic 1 | . . . . . 1 . Operator 3 | . . . . . 3 . Watcher 5 | . 3 . . . 1 1 Swarmer 8 | . 3 . . 1 4 . Grunt 35 | . 5 4 . . 14 12 Brawler 1 | . . . . . . 1 Sentry 6 | . . . . . 2 4 Hunter 8 | . . . . 1 5 2 Programmer 4 | . . . . . . 4 Best Kill Streak 6 | 2 6 2 . 3 4 4 Combat Bots Only 6 | . 6 2 . 1 4 4 Max Kills in Single Turn 2 | 1 2 2 . 2 2 1 Gunslinging . | . . . . . . . Exploded 2 | . 1 2 . . 2 . Melee 1 | . . . . 1 1 1 Uniques/NPCs Destroyed . | . . . . . . . Combat | -11 -10 -10 -10 -9 -8 -7 -------- Run | Yrd Mat Min Exi Min Mat Fac Hostile Shots Fired 660 | . 23 25 . 13 232 367 Missed 192 | . 8 7 . 4 66 107 Hits 468 | . 15 18 . 9 166 260 Projectile 468 | . 15 18 . 9 166 260 Critical Strikes 12 | . . . . . 2 10 Damage Taken 5408 | . 184 216 . 75 2004 2929 Core 1039 | . 33 27 . 37 239 703 Absorbed by Shields 727 | . . . . . 271 456 Ignored by Resistances 111 | . . . . . 111 . Core Remaining (%) 72 | 100 . . . 61 56 . Volleys Fired 88 | 5 20 16 . 2 37 8 Largest 2 | 2 2 2 . 1 1 1 Hottest 150 | 40 60 101 . 50 150 23 Shots Fired 114 | 10 36 18 . 2 39 9 Gun 56 | 10 2 1 . 2 32 9 Cannon 36 | . 17 15 . . 4 . Launcher 22 | . 17 2 . . 3 . Special . | . . . . . . . Kinetic 70 | 10 19 15 . . 17 9 Thermal 22 | . . 1 . 2 19 . Explosive 19 | . 17 2 . . . . Electromagnetic 3 | . . . . . 3 . Robot Hit Streak 10 | 3 8 10 . . 6 5 Robot Miss Streak 4 | 3 4 1 . 2 2 3 Penetration Max . | . . . . . . . Secondary Targets . | . . . . . . . Shots Hit Robots 209 | 5 16 13 . 15 85 75 Core Hits 72 | 3 20 4 . 3 20 22 Critical Kills 8 | . . . . 1 2 5 Critical Parts Destroyed 22 | . . . . 3 11 8 Critical Strikes 36 | . . 2 . 4 16 14 Burn 3 | . . . . . 3 . Blast 2 | . . 2 . . . . Smash 31 | . . . . 4 13 14 Melee Attacks 229 | . . . . 17 89 123 Impact 229 | . . . . 17 89 123 Slashing . | . . . . . . . Piercing . | . . . . . . . Sneak Attacks 30 | . . . . 14 12 4 Combat Hostiles 1 | . . . . . 1 . Follow-up Attacks 24 | . . . . . 4 20 Damage Inflicted 10238 | 61 818 334 . 1510 4019 3496 Guns 574 | 61 15 . . . 417 81 Cannons 411 | . 122 225 . . 64 . Explosions 880 | . 681 105 . . 94 . Melee 8350 | . . . . 1510 3435 3405 Ramming 23 | . . 4 . . 9 10 Kinetic 748 | 61 137 225 . . 244 81 Thermal 237 | . . . . . 237 . Explosive 786 | . 681 105 . . . . Electromagnetic 94 | . . . . . 94 . Impact 8350 | . . . . 1510 3435 3405 Slashing . | . . . . . . . Piercing . | . . . . . . . Highest Corruption 29 | . . . . . 29 15 Average Corruption 11 | . . . . . 12 8 Corruption Purged . | . . . . . . . Corruption Blocked . | . . . . . . . Effects 202 | . . . . . 135 67 Message Errors 61 | . . . . . 43 18 Matter Fused 52 | . . . . . 32 20 Heat Flow Errors 24 | . . . . . 16 8 Energy Discharges 21 | . . . . . 13 8 Parts Rejected 2 | . . . . . . 2 Parts Fused 1 | . . . . . 1 . Data Loss (minor) 24 | . . . . . 20 4 Data Loss (major) 6 | . . . . . 3 3 Misfires 3 | . . . . . 2 1 Alerts 6 | . . . . . 5 1 Misdirections 2 | . . . . . . 2 Overload Shots 4 | . . . . . 4 . Effects 2 | . . . . . 2 . Energy Bleed 1 | . . . . . 1 . Short Circuit 1 | . . . . . 1 . Overflow Damage 3072 | . 6 23 . 943 1386 714 Projectiles 90 | . . . . 43 47 . Explosions 44 | . 6 23 . . 15 . Melee 2938 | . . . . 900 1324 714 Knockbacks 31 | . 2 4 . 4 13 8 Impact 21 | . . . . 4 10 7 Kinetic 7 | . 2 3 . . 2 . Secondary 3 | . . 1 . . 1 1 Self-Inflicted Damage 311 | . 57 28 . . 221 5 Shots 8 | . 3 1 . . 4 . Rammed 1 | . . . . . . 1 Targets Rammed 4 | . . 2 . . 1 1 Kicked 3 | . . 2 . . 1 . Crushed . | . . . . . . . Highest Temperature 318 | . 32 45 . 28 318 197 Average Temperature 95 | . 24 17 . 16 101 72 Received Heat Transfer 1572 | . 36 51 . . 531 954 Effects 4 | . . . . . 4 . Interference 4 | . . . . . 4 . Siege Activations . | . . . . . . . Martial Activations . | . . . . . . . Shielding Activations . | . . . . . . . Robots Disrupted . | . . . . . . . Combat Hostiles . | . . . . . . . Robots Corrupted 27 | . . . . 8 14 5 Combat Hostiles 14 | . . . . . 9 5 Parts Fried 31 | . . . . 6 21 4 Impact Corruptions 103 | . . . . 24 48 31 Robots Melted . | . . . . . . . Combat Hostiles . | . . . . . . . Parts Melted 4 | . . . . . 4 . Heat Transferred 720 | . . . . . 720 . Parts Sabotaged . | . . . . . . . Parts Stolen . | . . . . . . . Parts Stripped . | . . . . . . . Power Chain Reactions . | . . . . . . . Alert | -11 -10 -10 -10 -9 -8 -7 ------- Run | Yrd Mat Min Exi Min Mat Fac Maximum Alert Level 1 | . 1 . . . 1 . Low Security (%) 87 | 100 58 100 . 100 73 100 Level 1 12 | . 41 . . . 26 . Level 2 . | . . . . . . . Level 3 . | . . . . . . . Level 4 . | . . . . . . . Level 5 . | . . . . . . . High Security . | . . . . . . . Max Security . | . . . . . . . Peak Influence 282 | 5 282 117 . 111 257 159 Initial 107 | . . 88 . . 1 107 Average 66 | 1 133 25 . 20 93 58 Influence Increases 2566 | 10 412 187 . 361 904 692 Destroy 0b10 Robot/C 1420 | . 160 140 . 160 500 460 Destroy 0b10 Robot/NC 195 | 10 30 . . 70 65 20 Destroy Leader 348 | . 30 30 . 30 136 122 Allied During Kill 80 | . . 4 . 76 . . Trap Triggered on 0b10 20 | . . . . 10 10 . Successful Hack 20 | . 20 . . . . . Disable Machine 180 | . 60 . . . 120 . Destroy Structure 153 | . 112 13 . . 28 . Lose Combat Pursuer 150 | . . . . 15 45 90 Influence Decreases 2474 | 10 185 404 10 355 673 837 Entered New Map 284 | . . 139 10 . 5 130 Time Decay 1717 | 10 185 255 . 305 440 522 Lost Part 273 | . . 10 . . 78 185 Lost Ally 50 | . . . . 50 . . Purge Threat 150 | . . . . . 150 . Squads Dispatched 15 | . 2 . . . 6 7 Investigation 4 | . 1 . . . 1 2 Extermination 4 | . . . . . . 4 Reinforcement 7 | . 1 . . . 5 1 Assault . | . . . . . . . Garrison . | . . . . . . . Intercept . | . . . . . . . Searches Triggered . | . . . . . . . Construction Impeded 1 | . . . . . 1 . Haulers Reinforced . | . . . . . . . Active Scanning Responses . | . . . . . . . Cargo Convoy Interrupts . | . . . . . . . Stealth | -11 -10 -10 -10 -9 -8 -7 --------- Run | Yrd Mat Min Exi Min Mat Fac Distress Signals 4 | . . . . . 3 1 Communications Jammed . | . . . . . . . Distress Signals . | . . . . . . . Times Spotted 105 | . 13 7 . 6 42 37 Peak Tracking Total 5 | . 3 3 . 4 4 5 Tactical Retreats 8 | . . . . 1 3 4 Traps | -11 -10 -10 -10 -9 -8 -7 ------- Run | Yrd Mat Min Exi Min Mat Fac Traps Triggered 3 | . . . . . 2 1 Indirectly . | . . . . . . . Trap Hack Attempts . | . . . . . . . Triggered . | . . . . . . . Disarmed . | . . . . . . . Reprogrammed . | . . . . . . . Reused 2 | . . . . 1 1 . Traps Extracted . | . . . . . . . Installed 2 | . . . . 1 1 . Triggered 2 | . . . . 1 1 . Most Traps Carried 1 | . . . . 1 1 . Machines | -11 -10 -10 -10 -9 -8 -7 ---------- Run | Yrd Mat Min Exi Min Mat Fac Machines Disabled 12 | . 4 . . . 8 . Max in Single Turn 3 | . 1 . . . 3 . Machines Repaired . | . . . . . . . Machines Dismantled . | . . . . . . . Machines Sabotaged . | . . . . . . . Overloaded Fab Kills . | . . . . . . . Hacking | -11 -10 -10 -10 -9 -8 -7 --------- Run | Yrd Mat Min Exi Min Mat Fac Machines Accessed 12 | . 3 1 1 . 5 2 Terminals 5 | . 2 . . . 2 1 Fabricators . | . . . . . . . Repair Stations 1 | . . . . . 1 . Recycling Units 3 | . 1 . . . 2 . Scanalyzers . | . . . . . . . Garrison Access 1 | . . . . . . 1 Total Hacks 39 | . 16 1 1 . 14 7 Successful 19 | . 9 1 1 . 7 1 Failed 20 | . 7 . . . 7 6 Catastrophic 3 | . . . . . 3 . Database Lockouts . | . . . . . . . Manual 13 | . 5 1 3 . 4 . Terminals 23 | . 13 . . . 6 4 Fabricators . | . . . . . . . Repair Stations 2 | . . . . . 2 . Recycling Units 9 | . 3 . . . 6 . Scanalyzers . | . . . . . . . Garrison Access 3 | . . . . . . 3 Terminal Hacks 10 | . 5 1 1 . 2 1 Prototype ID Bank 1 | . 1 . . . . . Open Door 1 | . . 1 . . . . Open DSF 1 | . . . . . . 1 Emergency Access Points 1 | . . . . . 1 . Unreport Threat 1 | . . . . . 1 . Locate Traps 1 | . 1 . . . . . Reinforcement Status 1 | . 1 . . . . . Hauler Manifests 1 | . 1 . . . . . Zone Layout 1 | . 1 . . . . . Proto ID Catalog 1 | . . . 1 . . . Fabricator Hacks . | . . . . . . . Repair Station Hacks . | . . . . . . . Recycling Unit Hacks 7 | . 3 . . . 4 . Process 1 | . 1 . . . . . Report Inventory 3 | . 1 . . . 2 . Retrieve Matter 1 | . 1 . . . . . Retrieve Components 2 | . . . . . 2 . Scanalyzer . | . . . . . . . Garrison Access Hacks . | . . . . . . . Unauthorized Hacks 2 | . 1 . . . 1 . Terminals 2 | . 1 . . . 1 . Track 2 | . 1 . . . 1 . Fabricators . | . . . . . . . Repair Stations . | . . . . . . . Recycling Units . | . . . . . . . Scanalyzers . | . . . . . . . Garrison Access . | . . . . . . . Data Cores Recovered . | . . . . . . . Used . | . . . . . . . Hacking Detections 9 | . 3 . . . 4 2 Full Trace Events 7 | . 2 . . . 3 2 Feedback Events . | . . . . . . . Feedback Blocked . | . . . . . . . Robot Schematics Acquired . | . . . . . . . Robots Built . | . . . . . . . Authchips . | . . . . . . . Time . | . . . . . . . Total Robot Build Rating . | . . . . . . . Part Schematics Acquired . | . . . . . . . Parts Built . | . . . . . . . Authchips . | . . . . . . . Time . | . . . . . . . Total Part Build Rating . | . . . . . . . Part Studies Acquired . | . . . . . . . Parts Repaired . | . . . . . . . Time . | . . . . . . . Parts Recycled . | . . . . . . . Recycled Matter 1294 | . 1294 . . . . . Retrieved Matter 1314 | . 1314 . . . . . Retrieved Components 16 | . . . . . 16 . Parts Scanalyzed . | . . . . . . . Part Schematics Acquired . | . . . . . . . Parts Damaged . | . . . . . . . Bothacking | -11 -10 -10 -10 -9 -8 -7 ------------ Run | Yrd Mat Min Exi Min Mat Fac Used RIF Installer . | . . . . . . . Robots Hacked . | . . . . . . . Non-combat . | . . . . . . . Combat . | . . . . . . . Robot Hacks Applied . | . . . . . . . Relay Couplers Released . | . . . . . . . Fabnet Peak Effective % . | . . . . . . . Robots Rewired 4 | . . . 4 . . . Allies Hacked . | . . . . . . . Hacks Repelled . | . . . . . . . Allies | -11 -10 -10 -10 -9 -8 -7 -------- Run | Yrd Mat Min Exi Min Mat Fac Total Allies 7 | . . 1 4 2 . . Largest Group 6 | . . 1 4 6 . . Highest-Rated Group 100 | . . 31 45 100 . . Highest-Rated Ally 31 | . . 31 21 31 . . Total Orders 10 | . . . 4 6 . . FOLLOW 1 | . . . . 1 . . GUARD 2 | . . . . 2 . . AID 7 | . . . 4 3 . . Ally Attacks 43 | . . 7 . 36 . . Total Damage 551 | . . 85 . 466 . . Kills 11 | . . 3 . 8 . . Allies Corrupted 1 | . . . . 1 . . Allies Melted . | . . . . . . . Turrets Deployed 2 | . . . . 2 . . Intel | -11 -10 -10 -10 -9 -8 -7 ------- Run | Yrd Mat Min Exi Min Mat Fac Active Infowar (turns) 11513 | 53 429 1080 2216 1731 4374 1630 Optics 6378 | . 400 1080 2216 1731 951 . Sensors 9130 | . 347 1080 2216 478 4079 930 Seismic 134 | 53 81 . . . . . T.N.C. 933 | . . . . . 933 . Jamming 700 | . . . . . . 700 Robot Analysis Total . | . . . . . . . Derelict Logs Recovered 2 | . . 1 . 1 . . Drone Launches . | . . . . . . . Drone Recoveries . | . . . . . . . Exploration | -11 -10 -10 -10 -9 -8 -7 ------------- Run | Yrd Mat Min Exi Min Mat Fac Turns Passed 13525 | 119 429 1080 2216 1731 4654 3296 Spaces Moved 7707 | 103 355 835 1738 1399 2205 1072 Core 32 | 3 . . 4 . . 25 Treads 436 | . . . . . 116 320 Legs 6489 | . 116 835 1734 1399 2089 316 Wheels 478 | 100 239 . . . . 139 Hover 272 | . . . . . . 272 Flight . | . . . . . . . Fastest Speed 50 | 50 80 120 120 120 120 50 Average Speed 135 | 88 98 120 120 120 161 152 Slowest Speed 450 | 90 120 120 250 120 400 450 Overloaded Moves . | . . . . . . . Propulsion Burnouts . | . . . . . . . Robots Hopped 4 | . . . . 4 . . Potential Cave-ins . | . . . . . . . Cave-ins Triggered . | . . . . . . . Exploration Rate (%) 58 | 4 57 81 94 100 59 11 Regions Visited 6 Branch Regions 3 Pre-discovered Areas 2 | . . 1 . 1 . . Known Exits Taken 2 | . . . . 1 1 . Unknown Exits Taken 4 | 1 1 1 1 . . . Scrap Searched 4 | . . 1 . 3 . . Spaces Dug . | . . . . . . . Terrain Destroyed 171 | . 128 15 . . 28 . Melee . | . . . . . . . Projectile 1 | . . . . . 1 . AOE 170 | . 128 15 . . 27 . Terrain Rammed . | . . . . . . . Walls Destroyed . | . . . . . . . Machines Disabled . | . . . . . . . Actions | -11 -10 -10 -10 -9 -8 -7 --------- Run | Yrd Mat Min Exi Min Mat Fac Total 10446 | 117 402 895 1865 1429 3159 2579 Wait 2157 | . 6 28 36 3 734 1350 Move 7693 | 102 354 834 1737 1390 2204 1072 Hop 4 | . . . . 4 . . Pick Up 31 | 3 5 1 4 2 13 3 Fast Attach 67 | 7 3 3 2 2 26 24 Attach 18 | . 1 . 1 . 10 6 Detach 19 | . 3 . 1 1 8 6 Swap 27 | . 3 5 . 2 15 2 Drop 62 | . 7 6 6 5 28 10 Fire 88 | 5 20 16 . 2 37 8 Melee 196 | . . . . 17 82 97 Ram 1 | . . . . . . 1 Kick 3 | . . 2 . . 1 . Crush . | . . . . . . . Escape Stasis . | . . . . . . . Rewire 78 | . . . 78 . . . Trap 2 | . . . . 1 1 . Miscellaneous . | . . . . . . . Route ------- -11/Scrapyard -10/Materials (discovered 3 exits: [*Mat x2] / *Min) -10/Mines (discovered 3 exits: [*Mat x2] / *Exi) -10/Exiles -9/Mines (discovered 2 exits: *Mat x2) -8/Materials -7/Factory History --------- Turn | Location | Event 23 | -11/Scrapyard | Discovered new exit (range 15) 120 | -11/Scrapyard | Entered Materials 233 | -10/Materials | Discovered new exit (range 18) 300 | -10/Materials | Build established: Mutant 327 | -10/Materials | Discovered new exit (range 19) 528 | -10/Materials | Discovered new exit (range 12) 549 | -10/Materials | Entered Mines 552 | -10/Mines | Received a Mining Laser from a helpful Derelict 605 | -10/Mines | Learned location of Mines (-9) 739 | -10/Mines | Discovered new exit (range 9) 1273 | -10/Mines | Met a Derelict who couldn't figure out how to use a Trap Extractor 1576 | -10/Mines | Discovered new exit (range 14) 1619 | -10/Mines | Deemed a non-threat by the Exiles lab entrance 1619 | -10/Mines | Discovered new exit (range 5) 1629 | -10/Mines | Entered Exiles 1629 | -10/Exiles | Found Exiles lab destroyed 1827 | -10/Exiles | Build established: Scavenger-Mutant 2200 | -10/Exiles | Discovered new exit (range 17) 2411 | -10/Exiles | Opened EX-Vault 2531 | -10/Exiles | Found Deploy-a-Sentry 2533 | -10/Exiles | Found Deploy-a-Sentry 3845 | -10/Exiles | Entered Mines 3845 | -9/Mines | Accompanied by 4 allies 3930 | -9/Mines | Learned location of Recycling (-8) 3956 | -9/Mines | Build established: Commander-Mutant 3975 | -9/Mines | Found a hidden stash of uninstalled traps 4062 | -9/Mines | DAS Turret deployed 4128 | -9/Mines | Discovered new exit (range 12) 4202 | -9/Mines | Discovered new exit (range 9) 4208 | -9/Mines | DAS Turret deployed 4335 | -9/Mines | Identified exit to Materials 4534 | -9/Mines | Build established: Scavenger-Mutant 5576 | -9/Mines | Entered Materials 5576 | -8/Materials | Evolved 4 slots: Power x1, Propulsion x1, Utility x2 6297 | -8/Materials | Build established: Scavenger-Assassin 6561 | -8/Materials | Discovered new exit (range 12) 6780 | -8/Materials | Identified exit to Factory 7106 | -8/Materials | Build established: Scavenger-Mutant 8179 | -8/Materials | Build established: Mutant 8889 | -8/Materials | System corruption reached 10% 10230 | -8/Materials | Entered Factory 10230 | -7/Factory | Evolved 2 slots: Utility x1, Weapon x1 10700 | -7/Factory | Build established: Gladiator 11212 | -7/Factory | Lost 3 parts (1p2u) 11515 | -7/Factory | Build established: Scavenger-Mutant 11972 | -7/Factory | Lost 6 parts (2p2n2u) 12070 | -7/Factory | System corruption reached 10% 12186 | -7/Factory | Build established: Mutant 12341 | -7/Factory | Core integrity fell below 50% 13510 | -7/Factory | Core integrity fell below 20% 13526 | -7/Factory | Destroyed by G-47 Trooper with Particle Gun Last Messages --------------- 13491_ K-01 Serf cleans the Assembly Bed. 13499_ Hvy. Flail destroyed. 13500_ K-01 Serf cleans the Assembly Bed. 13505_ Mic. Nuclear Core destroyed. 13507_ K-01 Serf cleans the Assembly Bed. 13507_ Aluminum Leg destroyed. 13508_ Imp. Shield Generator destroyed. 13508_ Slammed into G-47 Trooper. 13509_ G-47 Trooper destroyed. 13510_ K-01 Serf collects debris. 13511_ Hvy. Flail destroyed. 13513_ K-01 Serf collects debris. 13516_ System corrupted: Matter fused (-8). 13516_ Acquired 5 matter. 13516_ K-01 Serf cleans the Assembly Bed. 13518_ K-01 Serf collects debris. 13520_ Hvy. Flail destroyed. 13521_ K-01 Serf collects debris. 13522_ R-06 Scavenger collects Aluminum Leg. 13526_ K-01 Serf collects debris. Map ----- +----------------------------------------------------+ | ?????????????????????????????????????????????????? | | ?????????????????????????????????????????????????? | | ?????????????????????????????????????????????????? | | ?????????????????????????????????????????????????? | | ?????????????????????????????????????????????????? | | ?????????????????????????????????????????????????? | | ?????????????????????????????????????????????????? | | ?????????????????????????????????????????????????? | | ?????????????????????????????????????????????????? | | ????????????????????????? ??????????????????????? | | ????????????????????????? ??????????????????????? | | ????????????????????????? ??????????????????????? | | ????????????????????????? ??????????????????????? | | ????????????????????????? ??????????????????????? | | ?????????????????######## ????????????? ????????? | | ????????????????? k ?? ???????? ????????? | | ?????????????????? ! ?????? ????????? | | ???????????????? "" """""" ""???? "????????? | | ????????????????# " """""" """""" ""???????? | | ????????????????# "F r"""""" """""" """""" "?? | | ???????????###### "" ^ """""" """""" """""" ""? | | ??????????? u | | ?????????? r ? | | ?????????? ??? | | ??????????a g g ????? | | ?????????? @ ??????? | | ?????????????#+########## rk ????????? | | ????????????????????????#k! ????????? | | ????????????????????????# w###?????????? | | ????????????????????????# #???????????? | | ????????????????????????# #???????????? | | ????????????????????????# k#???????????? | | ????????????????????????# %% #???????????? | | ?????????????????????#######+### r #???????????? | | ?????????????????????# % # ############# | | ?????????????????????# """ """ # | | ?????????????????????# """ """ # u | | ?????????????????????# """ """ # | | ?????????????????????# "" "" # | | ?????????????????????# "" "" # | | ?????????????????????# ############### | | ?????????????????????# """T""" #?????????????# | | ?????????????????????###############?????????# | | ?????????????????????????# #?????????# | | ?????????????????????????# ! """"#?????????# | | ?????????????????????????# """"#?????????+ | | ?????????????????????????# """"#?????????# | | ????????????????????#????# ! """"#?????????# | | ????????????????????# ???# """"#?????????# | | ????????????????? ??# ???# """"#?????????# | +----------------------------------------------------+ Best States ------------- Heat Dissipation 34 Energy Generation 27 Energy Capacity 480 Matter Stores 300 Matter Capacity 300 Sight Range 18 Robot Scan Range 15 Terrain Scan Density 10 Jamming Range 12 Armor Coverage 375 Resistance: KI 20 Melee Speed Boost 20 Evasion (%) 55 Recoil Reduction 4 Item Schematics ----------------- None Robot Schematics ------------------ None Fabricated ------------ Nothing Repaired ---------- Nothing Studied --------- None Alien Tech Used ----------------- None Achievements -------------- The More The Merrier Watch This! Challenges ------------ None Game ------ Seed BlanketImpactDirector Manual? 0 Play Time 01:56:53 Cumulative 16.0 hours Start 2026.01.04 @ 18:18:02 End 2026.01.05 @ 05:59:15 Sessions 1 Manual Loads 0 Difficulty Rogue Special Mode None Game No. 19 Rogue 19 Adventurer 0 Explorer 0 Win Type - Total 0 Types 0/0/0/0/0/0/0/0/0/0 Lore% 16 Gallery% 15 Achievement% 15 Wizard Run 0 Options --------- Layout 1 ASCII 0 Keyboard 0 Movement Arrows Keybinds 0 Fullscreen 2 Font 24/Crisp Map View 50x35 Zoom Use 0% Tactical HUD 1 Map Filters NONE Filters NONE Steam 1 RUN: 4378f068-960f-4d58-8288-863921d38cab